bitfinex/quotes_ETHUSD_20241104
["timestamp","ask_amount","ask_price","bid_price","bid_amount"]
[1730744077278,4.12183,2426.2,2425.7,4.70428406]
[1730744077445,4.12183,2426.2,2425.8,0.54834841]
[1730744078144,4.12186,2426.1,2425.8,0.54834841]
[1730744078882,4.12186,2426.1,2425.7,4.70425406]
[1730744079178,4.12209,2426.0,2425.7,0.58176406]
[1730744080202,7.70383186,2426.4,2425.6,0.7792]
[1730744080486,7.70383186,2426.4,2425.4,0.88721228]
[1730744080487,4.12252,2425.7,2425.4,0.88721228]
[1730744080679,4.12252,2425.7,2425.4,0.7554]
[1730744081266,4.12252,2425.7,2425.4,1.74511918]
[1730744082317,4.12252,2425.7,2425.4,0.7554]
[1730744082478,4.12269,2425.6,2425.4,0.7554]
[1730744082674,0.07508932,2425.5,2425.4,0.7554]
[1730744083421,4.12252,2425.7,2425.4,0.7554]
[1730744084109,0.07506415,2425.6,2425.4,0.7554]
[1730744084619,4.19775415,2425.6,2425.3,5.01850178]
[1730744084777,0.07506415,2425.6,2425.3,5.01850178]
[1730744084977,4.12286,2425.5,2425.3,5.01850178]
[1730744085573,0.07506415,2425.4,2425.3,5.01850178]
[1730744085894,4.12272,2425.6,2425.3,5.01850178]
[1730744086286,0.07494338,2425.5,2425.3,5.01850178]
[1730744086844,4.19780338,2425.5,2425.3,5.01850178]
[1730744087636,0.07494338,2425.5,2425.3,5.01850178]
[1730744088432,4.19790338,2425.5,2425.3,5.01850178]
[1730744088606,4.54282034,2425.4,2425.3,5.01850178]
[1730744089137,4.61774355,2425.4,2425.3,5.01850178]
[1730744089728,4.19795321,2425.4,2425.3,5.01850178]
[1730744090859,0.07492321,2425.4,2425.3,5.01850178]
[1730744092271,4.19795321,2425.4,2425.3,5.01850178]
[1730744092473,0.07492321,2425.4,2425.3,5.01850178]
[1730744093105,4.19795321,2425.4,2425.3,5.01850178]
[1730744093378,4.19795321,2425.4,2425.3,5.15064348]
[1730744094443,0.07492321,2425.4,2425.3,5.15064348]
[1730744096029,0.07492321,2425.4,2425.3,5.97614348]
[1730744096330,4.1226,2425.7,2425.3,11.11753828]
[1730744096534,0.07482003,2425.6,2425.4,0.1321417]
[1730744096916,0.07482003,2425.6,2425.3,9.96720178]
[1730744097069,4.19751003,2425.6,2425.4,0.13231452]
[1730744097227,4.19751003,2425.6,2425.5,0.13231452]
[1730744100649,0.07482003,2425.6,2425.5,0.13231452]
[1730744100857,0.07482003,2425.6,2425.3,5.84400178]
[1730744101059,4.19753003,2425.6,2425.4,0.1323995]
[1730744101279,4.19753003,2425.6,2425.3,6.84073596]
[1730744101280,0.07482003,2425.6,2425.5,0.1323995]
[1730744101670,4.19751003,2425.6,2425.5,0.1323995]
[1730744102045,4.12303,2425.4,2425.3,5.01850178]
[1730744102246,4.12303,2425.4,2425.3,5.15090135]
[1730744102455,4.1978626,2425.4,2425.3,5.15090135]
[1730744104091,4.1978626,2425.4,2425.3,5.01850178]
[1730744104299,4.1978626,2425.4,2425.3,5.15090871]
[1730744104586,4.64701886,2425.4,2425.3,5.15090871]
[1730744104783,4.64701886,2425.4,2425.3,5.15092379]
[1730744105288,4.64701886,2425.4,2425.3,5.01850178]
[1730744105896,4.94071886,2425.4,2425.3,5.01850178]
[1730744107951,4.1237,2425.1,2424.8,0.21189041]
[1730744108158,4.19845689,2425.0,2424.9,0.13241158]
[1730744109062,0.07472689,2425.0,2424.9,0.13241158]
[1730744109266,2.07472689,2425.0,2424.9,0.13241158]
[1730744109891,2.07472689,2425.0,2424.9,0.94101158]
[1730744110067,2.07472689,2425.0,2424.9,6.19585042]
[1730744110268,0.68595284,2425.0,2424.9,6.19585042]
[1730744110455,0.07217557,2425.0,2424.9,9.19585042]
[1730744110656,4.12258,2425.7,2425.4,0.8086]
[1730744111170,0.07217557,2425.6,2425.4,0.8086]
[1730744111358,4.12236,2425.8,2425.4,4.93162]
[1730744111554,0.07217557,2425.7,2425.5,0.13252977]
[1730744111862,4.12214,2426.0,2425.5,5.04157998]
[1730744112081,4.41551,2426.2,2425.5,5.79757998]
[1730744112082,0.07226113,2425.6,2425.5,5.79757998]
[1730744112253,4.12185,2426.1,2425.7,4.1225]
[1730744112455,4.12185,2426.1,2425.8,0.13253037]
[1730744112774,0.07233413,2426.0,2425.7,4.1225]
[1730744112977,0.07233413,2426.0,2425.5,5.79757998]
[1730744113180,4.12201,2426.0,2425.6,4.83497136]
[1730744113383,0.07233413,2425.9,2425.6,4.702418]
[1730744113599,0.07233413,2425.9,2425.7,0.13256503]
[1730744113754,0.2937,2426.4,2425.8,0.88854469]
[1730744113954,0.07233413,2426.3,2426.2,0.7843]
[1730744114260,3.87617186,2426.6,2425.8,7.90653]
[1730744114495,4.19153433,2426.3,2425.8,7.90653]
[1730744114697,4.12158,2426.3,2425.9,0.21193202]
[1730744114860,4.12197,2426.1,2425.6,9.92759109]
[1730744115066,0.36365433,2426.2,2425.7,0.34438727]
[1730744115296,4.12252,2425.7,2425.6,5.01788109]
[1730744115458,4.12252,2425.7,2425.6,5.15031866]
[1730744115663,5.33462419,2425.7,2425.6,5.01788109]
[1730744115862,0.06995433,2425.7,2425.6,5.01788109]
[1730744116170,4.12224,2425.9,2425.6,5.01788109]
[1730744116355,4.12252,2425.7,2425.6,5.84798109]
[1730744116561,4.41582,2426.0,2425.6,5.01788109]
[1730744116761,0.06995683,2425.9,2425.6,5.01788109]
[1730744117507,4.19221683,2425.9,2425.6,5.01788109]
[1730744117994,0.06995683,2425.9,2425.6,5.01788109]
[1730744118372,4.19224683,2425.9,2425.6,5.01788109]
[1730744120158,0.06995683,2425.9,2425.6,5.01788109]
[1730744120565,4.19220683,2425.9,2425.6,5.01788109]
[1730744120767,4.12236,2425.8,2425.6,5.01788109]
[1730744121292,0.06995683,2425.7,2425.6,5.01788109]
[1730744122004,4.12236,2425.8,2425.6,5.01788109]
[1730744122201,0.06995683,2425.7,2425.6,5.01788109]
[1730744122400,4.12236,2425.8,2425.6,5.01788109]
[1730744122601,0.06995683,2425.7,2425.6,5.01788109]
[1730744122803,4.41582,2426.0,2425.6,5.01788109]
[1730744122976,4.12236,2425.8,2425.6,5.01788109]
[1730744123460,0.06995683,2425.7,2425.6,5.01788109]
[1730744123895,8.24464,2425.9,2425.6,5.01788109]
[1730744124105,0.06995683,2425.7,2425.6,5.01788109]
[1730744124281,4.12252,2425.7,2425.6,5.01788109]
[1730744124480,4.19247683,2425.7,2425.6,5.01788109]
[1730744125323,4.90542451,2425.7,2425.6,5.01788109]
[1730744127106,4.12277,2425.6,2425.2,0.8144]
[1730744127405,0.06987883,2425.5,2425.3,0.1323953]
[1730744127573,4.19274883,2425.5,2425.2,0.8144]
[1730744127903,0.06987883,2425.5,2425.3,0.13240143]
[1730744128114,0.06987883,2425.5,2425.2,4.93774]
[1730744128401,0.06987883,2425.5,2425.3,0.13239853]
[1730744128611,0.06987883,2425.5,2425.2,4.93774]
[1730744128964,0.06987883,2425.5,2425.3,0.13240168]
[1730744129166,0.06987883,2425.5,2425.2,4.93774]
[1730744129388,0.06987883,2425.5,2425.3,0.13240024]
[1730744129603,0.06987883,2425.5,2425.2,4.93774]
[1730744129805,0.06987883,2425.5,2425.3,0.13240262]
[1730744129988,0.06987883,2425.5,2425.2,4.93774]
[1730744130300,0.06987883,2425.5,2425.3,0.13240239]
[1730744130505,0.06987883,2425.5,2425.2,4.93774]
[1730744130718,0.06987883,2425.5,2425.3,0.13241247]
[1730744130937,0.06987883,2425.5,2425.2,0.8144]
[1730744131092,4.19274883,2425.5,2425.3,0.13241139]
[1730744131417,4.19274883,2425.5,2425.2,0.8144]
[1730744131617,0.06987883,2425.5,2425.3,0.13241132]
[1730744131823,0.06987883,2425.5,2425.4,0.13240263]
[1730744132027,4.12238,2425.8,2425.4,0.13240263]
[1730744132247,0.06997701,2425.7,2425.4,4.12302]
[1730744132697,8.24484,2425.8,2425.4,4.12302]
[1730744132904,0.06997701,2425.6,2425.4,4.12302]
[1730744133107,4.12221,2425.9,2425.6,0.7749]
[1730744134287,8.2445,2425.9,2425.6,0.7749]
[1730744134485,4.12221,2425.9,2425.6,0.7749]
[1730744135310,4.12235,2425.8,2425.6,0.7749]
[1730744135520,4.946806,2425.8,2425.6,0.7749]
[1730744135838,6.5739948,2426.1,2425.6,0.7749]
[1730744135999,6.17246162,2426.3,2425.8,4.12234]
[1730744136000,6.2800148,2426.2,2425.8,4.12234]
[1730744136205,4.12169,2426.2,2425.8,4.12234]
[1730744136401,4.12169,2426.2,2425.9,0.7957]
[1730744136723,8.24345,2426.2,2425.9,0.7957]
[1730744136909,4.12169,2426.2,2425.9,0.7957]
[1730744137287,8.24347,2426.2,2425.9,0.7957]
[1730744137492,4.12154,2426.3,2425.9,0.7957]
[1730744137821,4.12175,2426.2,2425.9,0.7957]
[1730744138021,2.83778734,2426.5,2426.0,4.122]
[1730744138022,4.12135,2426.4,2426.0,4.122]
[1730744138250,6.27761015,2426.6,2426.2,4.89564]
[1730744138454,4.12084,2426.7,2426.3,4.12148]
[1730744139314,4.12068,2426.8,2426.5,0.7561]
[1730744140045,8.24146,2426.8,2426.5,0.7561]
[1730744140344,4.12068,2426.8,2426.5,0.7561]
[1730744141039,8.24146,2426.8,2426.5,0.7561]
[1730744141249,4.12068,2426.8,2426.5,0.7561]
[1730744141610,4.12058,2426.9,2426.5,0.7561]
[1730744142110,4.12058,2426.9,2426.5,4.87719]
[1730744142540,4.12058,2426.9,2426.5,0.7561]
[1730744143220,4.12032,2427.0,2426.5,4.87715]
[1730744143421,4.41399,2427.1,2426.6,4.12086]
[1730744143748,4.12045,2427.0,2426.6,4.12086]
[1730744143973,3.58247186,2426.9,2426.5,0.7561]
[1730744144241,1.21169119,2427.0,2426.0,0.8224]
[1730744144242,3.58247186,2426.6,2426.0,0.8224]
[1730744144458,3.87617186,2426.3,2425.8,1.03404864]
[1730744144617,4.12209,2426.0,2425.6,0.8224]
[1730744144819,4.1222,2425.9,2425.7,0.13220932]
[1730744145028,4.1222,2425.9,2425.6,0.8224]
[1730744145233,4.12237,2425.8,2425.6,0.8224]
[1730744145442,4.12204,2426.0,2425.6,4.94508]
[1730744145776,0.38761719,2426.2,2425.7,0.13224976]
[1730744145777,4.12169,2426.2,2425.7,0.13224976]
[1730744145966,4.12169,2426.2,2425.7,4.12242]
[1730744146252,4.12169,2426.2,2425.8,0.13224139]
[1730744146455,4.12186,2426.1,2425.7,4.12242]
[1730744146920,3.9824041,2426.1,2425.6,5.87303378]
[1730744147117,3.9824041,2426.1,2425.7,0.13224722]
[1730744147316,8.1043341,2426.1,2425.6,5.87303378]
[1730744147527,4.12225,2425.9,2425.6,0.8224]
[1730744148136,0.07023119,2425.8,2425.6,0.8224]
[1730744149013,0.07023119,2425.8,2425.6,4.94499]
[1730744149348,4.12219,2425.9,2425.6,0.8224]
[1730744149709,0.07023369,2425.8,2425.6,4.94508]
[1730744149914,0.07023369,2425.8,2425.6,0.8224]
[1730744150139,4.12203,2426.0,2425.6,0.8224]
[1730744150309,0.07023369,2425.7,2425.6,0.8224]
[1730744150519,4.12203,2426.0,2425.6,5.59364056]
[1730744150720,0.07023369,2425.7,2425.6,0.8224]
[1730744150926,8.24417,2426.0,2425.6,0.955292]
[1730744151124,0.07023369,2425.7,2425.6,0.8224]
[1730744151460,0.07023369,2425.7,2425.6,0.95529664]
[1730744151642,4.12237,2425.8,2425.6,0.95529664]
[1730744151812,4.12237,2425.8,2425.4,0.21265749]
[1730744151813,0.06555145,2425.7,2425.4,0.21265749]
[1730744152016,4.12237,2425.8,2425.4,4.1229]
[1730744152246,0.06555145,2425.7,2425.4,4.1229]
[1730744152452,4.12237,2425.8,2425.3,4.89232]
[1730744152747,0.06555145,2425.7,2425.4,0.13290922]
[1730744152952,4.18807145,2425.7,2425.3,4.89237]
[1730744153136,4.12252,2425.7,2425.4,0.13291031]
[1730744153348,0.06552881,2425.6,2425.3,4.89237]
[1730744153656,0.06552881,2425.6,2425.4,0.13290808]
[1730744153819,0.06552881,2425.6,2425.5,0.90890515]
[1730744154021,4.12211,2426.0,2425.5,5.03176515]
[1730744154210,3.87617186,2426.3,2425.6,0.13289582]
[1730744154211,0.06550365,2425.9,2425.6,0.13289582]
[1730744154423,4.12142,2426.4,2426.0,4.12187]
[1730744154657,0.06539797,2426.3,2426.1,4.12183]
[1730744154840,0.06539797,2426.3,2426.2,4.12167]
[1730744155043,4.12079,2426.8,2426.4,4.12125]
[1730744155223,0.06539797,2426.7,2426.4,4.1212]
[1730744155422,8.24084,2427.0,2426.6,4.12099]
[1730744155730,4.18592067,2426.9,2426.5,4.89713]
[1730744155943,0.06543067,2426.9,2426.5,5.798963]
[1730744156261,0.06543067,2426.9,2426.5,1.677833]
[1730744156416,4.18601067,2426.9,2426.5,1.677833]
[1730744156619,0.06543067,2426.9,2426.5,5.798953]
[1730744156928,4.12039,2427.0,2426.6,4.12091]
[1730744157258,4.12039,2427.0,2426.6,4.7008053]
[1730744157415,0.06560427,2426.9,2426.6,4.7008053]
[1730744158157,4.18610427,2426.9,2426.6,0.5798953]
[1730744158652,0.06560427,2426.9,2426.6,0.5798953]
[1730744159228,4.18610427,2426.9,2426.6,0.5798953]
[1730744159549,0.06560427,2426.9,2426.6,0.5798953]
[1730744160119,4.18615427,2426.9,2426.6,0.5798953]
[1730744160331,0.06560427,2426.9,2426.6,0.5798953]
[1730744161324,0.2937,2426.8,2426.2,4.94807]
[1730744161521,0.2937,2426.8,2426.3,4.12143]
[1730744161522,4.12089,2426.7,2426.3,4.12143]
[1730744161828,4.12106,2426.6,2426.2,0.8265]
[1730744162269,0.06562187,2426.5,2426.2,5.081004]
[1730744162561,0.06562187,2426.5,2426.3,0.9202734]
[1730744163161,4.18690187,2426.5,2426.2,0.8265]
[1730744163332,4.1214,2426.4,2426.0,0.7834]
[1730744163535,4.12152,2426.3,2426.1,0.1328652]
[1730744163739,0.06561683,2426.3,2426.0,0.7834]
[1730744164425,0.06561683,2426.3,2426.0,0.7334]
[1730744164825,0.06561683,2426.3,2426.0,4.85533]
[1730744165943,0.06561683,2426.3,2426.0,4.85374108]
[1730744166527,0.06561683,2426.3,2426.0,4.85373108]
[1730744166969,0.06561683,2426.3,2426.0,5.70203679]
[1730744168068,0.06561683,2426.3,2426.1,0.1329156]
[1730744168223,0.06561683,2426.3,2426.0,1.58011679]
[1730744168454,4.12058,2426.9,2426.4,4.12123]
[1730744168690,4.12058,2426.9,2426.5,4.12108]
[1730744168862,4.12,2427.2,2426.7,4.12072]
[1730744169071,0.3453,2427.3,2426.8,4.94076]
[1730744169258,0.3453,2427.3,2426.9,4.1204]
[1730744169457,4.11955,2427.5,2426.9,4.1204]
[1730744169458,4.11963,2427.4,2426.9,4.12037]
[1730744169653,4.11982,2427.3,2426.8,0.8202]
[1730744169979,4.12001,2427.2,2426.8,4.94082]
[1730744170992,4.11983,2427.3,2426.8,4.94082]
[1730744171154,4.11976,2427.4,2426.9,4.12045]
[1730744171358,4.11976,2427.4,2427.0,4.12024]
[1730744171561,4.11974,2427.4,2427.0,4.12024]
[1730744171771,4.11974,2427.4,2426.9,5.026587]
[1730744171772,4.1198,2427.3,2426.9,5.026587]
[1730744172059,4.11974,2427.4,2426.9,5.026587]
[1730744172255,4.11974,2427.4,2426.9,4.12046]
[1730744172479,4.12004,2427.2,2426.8,4.94083]
[1730744173092,4.12031,2427.0,2426.8,0.8202]
[1730744173315,4.12015,2427.1,2426.8,0.8202]
[1730744173594,4.12048,2426.9,2426.6,0.8272]
[1730744174157,4.12051,2426.9,2426.6,0.8272]
[1730744174622,4.12066,2426.8,2426.6,0.8272]
[1730744174805,4.12051,2426.9,2426.6,0.8272]
[1730744175096,4.979116,2426.9,2425.9,4.12206]
[1730744175299,4.12101,2426.6,2426.0,5.08177245]
[1730744175611,4.12125,2426.5,2426.1,0.13264245]
[1730744175923,4.92615219,2426.5,2426.1,4.12184]
[1730744176107,0.06141736,2426.4,2426.0,0.8272]
[1730744176400,0.3453,2426.6,2426.2,4.12156]
[1730744176401,4.121,2426.6,2426.2,4.12156]
[1730744176568,0.06141736,2426.3,2426.2,4.12156]
[1730744176771,4.12083,2426.7,2426.2,5.028626]
[1730744176958,0.06140729,2426.6,2426.2,5.028626]
[1730744177955,0.06140729,2426.6,2426.3,4.12149]
[1730744178153,0.06140729,2426.6,2426.2,5.028626]
[1730744178354,0.06140729,2426.6,2426.5,4.12116]
[1730744178589,4.12008,2427.2,2426.5,4.25384388]
[1730744178797,4.12014,2427.1,2426.6,4.12099]
[1730744179295,4.12014,2427.1,2426.7,4.12078]
[1730744179748,4.12014,2427.1,2426.6,8.24189]
[1730744179859,4.12036,2427.0,2426.6,4.1209]
[1730744180060,8.24039,2427.1,2426.6,4.1209]
[1730744180388,4.12031,2427.0,2426.5,4.12112]
[1730744180592,4.944239,2427.1,2426.4,13.25861666]
[1730744180593,4.12053,2426.9,2426.4,13.25861666]
[1730744180775,4.12053,2426.9,2426.4,9.13741666]
[1730744180976,4.12067,2426.8,2426.4,9.13741666]
[1730744181303,4.12039,2427.0,2426.5,0.13275889]
[1730744181605,4.46501,2427.4,2426.5,8.64059267]
[1730744181911,4.11963,2427.5,2427.0,4.12022]
[1730744182060,4.11957,2427.5,2427.0,4.12019]
[1730744182263,4.11966,2427.4,2427.0,4.12019]
[1730744184907,4.11947,2427.5,2427.1,0.13291981]
[1730744185111,4.11931,2427.6,2427.2,4.11989]
[1730744185276,4.11896,2427.8,2427.4,4.11958]
[1730744185476,4.11896,2427.8,2427.3,4.11968]
[1730744185666,4.11896,2427.8,2427.4,4.11953]
[1730744186000,4.11896,2427.8,2427.2,4.11983]
[1730744186157,4.11917,2427.7,2427.3,4.25270488]
[1730744186364,4.11917,2427.7,2427.2,8.020524]
[1730744186574,4.11917,2427.7,2427.3,0.13286927]
[1730744186575,8.23844,2427.7,2427.3,0.13286927]
[1730744186769,8.23844,2427.7,2427.2,8.020524]
[1730744186770,4.11917,2427.7,2427.2,8.020524]
[1730744186977,0.3453,2428.0,2427.3,5.54330164]
[1730744187369,0.3453,2428.0,2427.3,5.4104324]
[1730744187370,4.11903,2427.8,2427.3,5.4104324]
[1730744188030,4.11915,2427.7,2427.3,5.4104324]
[1730744188512,4.11903,2427.8,2427.3,5.4104324]
[1730744188513,8.23812,2427.8,2427.3,5.4104324]
[1730744189116,0.3453,2428.0,2427.3,1.2907024]
[1730744189117,4.1193,2427.6,2427.3,1.2907024]
[1730744189367,4.1193,2427.6,2426.7,7.70318186]
[1730744189368,4.11976,2427.4,2426.6,0.7777]
[1730744189547,0.3453,2427.5,2426.6,0.7777]
[1730744189548,4.46485,2427.5,2427.0,4.12021]
[1730744189743,4.46485,2427.5,2427.1,0.13274233]
[1730744190058,4.46485,2427.5,2427.0,4.12021]
[1730744190365,4.11932,2427.6,2427.1,4.25286158]
[1730744190671,3.92777186,2427.8,2427.0,4.94949]
[1730744190672,4.11964,2427.4,2427.0,4.94949]
[1730744190951,4.11964,2427.4,2427.1,0.1327367]
[1730744191172,4.11964,2427.4,2427.0,5.73154277]
[1730744191381,4.11964,2427.4,2427.1,0.13273354]
[1730744191382,4.11988,2427.3,2427.1,0.13273354]
[1730744191549,4.12005,2427.2,2427.0,0.1327399]
[1730744191752,4.1207,2426.8,2426.5,0.97161409]
[1730744191937,4.12095,2426.7,2426.6,0.13272985]
[1730744192141,4.12095,2426.7,2426.4,5.01622666]
[1730744192478,0.3453,2426.9,2426.4,5.01622666]
[1730744192479,4.12116,2426.5,2426.4,5.01622666]
[1730744192663,4.12147,2426.4,2426.0,0.7656]
[1730744192866,4.12147,2426.4,2426.1,0.13279133]
[1730744193043,0.06135898,2426.3,2426.0,4.88752]
[1730744193750,4.12104,2426.6,2426.2,4.12167]
[1730744193951,4.1209,2426.7,2426.0,0.7656]
[1730744194176,4.1209,2426.7,2426.3,4.1214]
[1730744194359,4.12117,2426.5,2426.0,5.10001796]
[1730744194587,4.12117,2426.5,2426.1,4.25463759]
[1730744194817,4.12117,2426.5,2426.2,0.13282809]
[1730744194979,4.12092,2426.7,2426.1,4.12182]
[1730744195164,4.12099,2426.6,2426.2,4.25447068]
[1730744195373,4.12126,2426.5,2426.1,4.12181]
[1730744195692,4.12126,2426.5,2426.2,0.13283856]
[1730744195852,4.12126,2426.5,2426.0,8.10005196]
[1730744196049,4.12126,2426.5,2426.1,0.1328497]
[1730744196289,4.12126,2426.5,2426.0,7.88748]
[1730744196497,4.12126,2426.5,2426.1,0.13283283]
[1730744196698,4.12126,2426.5,2426.0,7.88748]
[1730744196699,4.12124,2426.5,2426.0,7.88748]
[1730744196870,4.12124,2426.5,2426.1,0.13283384]
[1730744197070,4.12095,2426.7,2426.1,4.12183]
[1730744197603,4.12107,2426.6,2426.1,4.12173]
[1730744198308,4.12095,2426.7,2426.1,4.12173]
[1730744198461,8.24193,2426.7,2426.2,4.12158]
[1730744198656,4.12099,2426.6,2426.2,4.12158]
[1730744198858,4.12119,2426.5,2426.0,3.7656]
[1730744199073,4.12119,2426.5,2426.1,0.13281719]
[1730744199302,4.12142,2426.4,2426.1,0.13281719]
[1730744199468,4.12142,2426.4,2426.0,0.7656]
[1730744199658,4.12119,2426.5,2426.1,4.12181]
[1730744200861,4.12119,2426.5,2426.0,4.88761]
[1730744201175,4.12119,2426.5,2426.1,0.13279994]
[1730744201663,4.12119,2426.5,2426.1,4.12183]
[1730744201866,8.04825186,2426.9,2426.1,4.12183]
[1730744201867,4.12067,2426.8,2426.3,4.12136]
[1730744202170,4.12034,2427.0,2426.6,4.12098]
[1730744202368,8.24079,2427.0,2426.5,4.12106]
[1730744202574,4.12034,2427.0,2426.5,9.066365]
[1730744202804,4.12051,2426.9,2426.5,4.945305]
[1730744203299,4.12072,2426.8,2426.3,4.12138]
[1730744203985,4.1204,2427.0,2426.4,4.12117]
[1730744204302,3.92777186,2427.2,2426.6,0.8332]
[1730744204303,4.12015,2427.1,2426.6,0.8332]
[1730744204502,4.46536,2427.2,2426.7,8.24152]
[1730744204658,4.11982,2427.3,2426.8,4.12055]
[1730744205003,4.1197,2427.4,2426.9,4.12038]
[1730744205160,4.12005,2427.2,2426.7,5.03640334]
[1730744205359,4.12005,2427.2,2426.8,0.99904833]
[1730744205605,0.3453,2427.5,2426.8,0.99904833]
[1730744205757,4.11982,2427.3,2426.8,4.12052]
[1730744205962,4.12032,2427.0,2426.6,0.8332]
[1730744206432,4.12056,2426.9,2426.6,0.8332]
[1730744206597,4.12032,2427.0,2426.6,0.8332]
[1730744206804,4.12032,2427.0,2426.6,4.95418]
[1730744207141,4.12017,2427.1,2426.6,5.861589]
[1730744207333,4.12035,2427.0,2426.6,5.861589]
[1730744207635,4.18025258,2427.0,2426.6,5.861589]
[1730744208200,4.12057,2426.9,2426.6,1.740749]
[1730744208443,4.12065,2426.8,2426.4,4.90167]
[1730744208629,4.12065,2426.8,2426.4,4.9018]
[1730744208829,0.05990258,2426.8,2426.5,4.12114]
[1730744209242,8.30133258,2426.8,2426.4,4.9018]
[1730744209557,4.12085,2426.7,2426.4,0.7805]
[1730744210016,4.12118,2426.5,2426.3,0.13279803]
[1730744210201,4.12118,2426.5,2426.1,4.92217]
[1730744210599,0.05928901,2426.4,2426.1,4.92217]
[1730744210813,4.18068901,2426.4,2426.0,4.12185]
[1730744211046,0.05928901,2426.4,2426.1,0.13279796]
[1730744212005,4.1216,2426.3,2425.9,4.92994]
[1730744212252,4.1216,2426.3,2425.8,7.33481451]
[1730744212253,4.12173,2426.2,2425.8,7.33481451]
[1730744212410,4.12173,2426.2,2425.9,0.13277443]
[1730744212411,0.05923358,2426.2,2425.9,0.13277443]
[1730744212608,4.18099358,2426.2,2425.8,4.25511443]
[1730744212944,0.05923358,2426.1,2425.8,4.12234]
[1730744213706,0.05923358,2426.1,2425.7,0.8264]
[1730744213934,4.18109358,2426.1,2425.7,5.08169286]
[1730744214249,4.12208,2426.0,2425.7,0.8264]
[1730744214451,4.12219,2425.9,2425.7,0.13276071]
[1730744214747,4.12204,2426.0,2425.6,4.25544071]
[1730744214947,4.12204,2426.0,2425.6,4.12268]
[1730744214948,0.05915544,2425.8,2425.6,4.12268]
[1730744215249,0.05915544,2425.7,2425.6,1.201063]
[1730744215409,0.05915544,2425.7,2425.6,0.13274104]
[1730744215609,4.12204,2426.0,2425.6,4.25543104]
[1730744215842,0.05915544,2425.7,2425.6,4.12269]
[1730744216057,4.12179,2426.2,2425.7,4.12245]
[1730744216251,0.05915544,2425.9,2425.8,4.12234]
[1730744216419,0.05915544,2425.9,2425.8,1.638479]
[1730744216949,4.12174,2426.2,2425.8,1.638479]
[1730744217150,0.05913021,2425.9,2425.8,0.814]
[1730744217322,4.12184,2426.1,2425.8,0.814]
[1730744217563,0.05913021,2425.9,2425.8,0.814]
[1730744217971,4.12184,2426.1,2425.8,0.814]
[1730744218173,0.05913021,2425.9,2425.8,0.814]
[1730744218405,4.12184,2426.1,2425.8,0.814]
[1730744218552,0.05913021,2425.9,2425.8,0.94684921]
[1730744218753,8.24377,2426.1,2425.8,0.94684921]
[1730744218949,0.05913021,2425.9,2425.8,0.814]
[1730744219204,0.05913021,2425.9,2425.8,1.32889785]
[1730744219347,4.12184,2426.1,2425.8,1.46181534]
[1730744219543,0.05912014,2425.9,2425.8,4.93635]
[1730744219748,4.1218,2426.2,2425.8,5.06927426]
[1730744219982,0.05912014,2425.9,2425.8,4.93635]
[1730744220296,0.05912014,2425.9,2425.8,0.94692449]
[1730744220597,4.12185,2426.1,2425.8,0.13292449]
[1730744220748,0.05912014,2425.9,2425.7,4.1224]
[1730744221076,4.12185,2426.1,2425.8,0.13296247]
[1730744221272,4.12185,2426.1,2425.9,0.13305372]
[1730744221477,4.12185,2426.1,2425.7,4.1224]
[1730744221692,4.12185,2426.1,2425.8,0.13304879]
[1730744221853,4.12168,2426.2,2425.9,0.13304879]
[1730744222184,4.12144,2426.4,2426.0,5.02891552]
[1730744222388,4.12161,2426.3,2426.0,0.7739]
[1730744222592,4.18075031,2426.3,2426.0,0.7739]
[1730744222905,4.12172,2426.2,2426.0,0.7739]
[1730744223051,4.12192,2426.1,2425.8,1.02382519]
[1730744223244,4.12211,2426.0,2425.9,0.13304849]
[1730744223446,4.12211,2426.0,2425.7,0.21292519]
[1730744223648,8.30340031,2426.0,2425.8,0.13303717]
[1730744223843,4.18125031,2426.0,2425.7,0.21292519]
[1730744224085,4.12218,2425.9,2425.8,0.13303887]
[1730744224299,5.01167091,2425.9,2425.8,0.13303887]
[1730744224474,4.18132788,2425.9,2425.8,0.13303887]
[1730744227427,4.12235,2425.8,2425.7,0.13303887]
[1730744227628,4.12332,2425.3,2425.2,0.21279952]
[1730744227933,4.12349,2425.2,2424.9,0.13300322]
[1730744228100,4.12349,2425.2,2424.8,0.776]
[1730744228101,4.12361,2425.1,2424.8,0.21287423]
[1730744228297,4.18255367,2425.1,2424.7,8.86322429]
[1730744228511,0.05894367,2425.1,2424.8,0.13287748]
[1730744228714,0.05894367,2425.1,2424.7,4.73908429]
[1730744229024,4.12371,2425.0,2424.7,4.73908429]
[1730744229427,0.05884534,2424.9,2424.7,4.73908429]
[1730744230788,3.58247186,2425.3,2424.7,4.73908429]
[1730744231144,4.12389,2424.9,2424.7,4.73908429]
[1730744231291,4.12368,2425.1,2424.7,4.73908429]
[1730744231635,4.12349,2425.2,2424.7,4.73908429]
[1730744231836,4.18242667,2425.0,2424.7,4.73908429]
[1730744232132,0.05871667,2424.9,2424.7,4.73908429]
[1730744232325,0.05871667,2424.9,2424.7,10.23962172]
[1730744232540,7.70526186,2425.6,2424.7,6.11548172]
[1730744232748,4.12279,2425.6,2425.1,8.24687]
[1730744232907,4.12286,2425.5,2425.1,4.12342]
[1730744233530,4.12279,2425.6,2425.1,4.12342]
[1730744233747,4.12279,2425.6,2425.2,4.90404]
[1730744234052,4.12279,2425.6,2425.2,4.90405]
[1730744234542,3.92777186,2425.9,2425.2,1.683461]
[1730744234853,4.12242,2425.8,2425.3,4.12303]
[1730744235152,0.3453,2425.9,2425.4,4.12295]
[1730744235441,4.46754,2425.9,2425.4,4.12295]
[1730744235647,4.46754,2425.9,2425.4,5.025618]
[1730744235853,4.41271889,2426.2,2425.7,4.1225]
[1730744235854,4.12176,2426.2,2425.7,4.1225]
[1730744236154,7.4,2426.3,2425.8,4.1222]
[1730744236155,4.12151,2426.3,2425.8,4.1222]
[1730744236302,4.12151,2426.3,2425.9,4.12209]
[1730744237120,4.12167,2426.2,2425.8,4.1222]
[1730744237418,4.12167,2426.2,2425.6,4.91065]
[1730744237419,4.12118,2426.5,2426.1,4.12183]
[1730744237617,4.1206,2426.9,2426.3,0.7604]